[Event "Titled Tuesday Blitz August 09 Early 2022"]
[White "Ianov, Viktor"]
[Black "Bilych, Olexiy"]
[WhiteFideId "14102730"]
[BlackFideId "14156504"]
[WhiteElo "2152"]
[BlackElo "2157"]
[Result "0-1"]
[Round "05"]
[TimeControl "180+1"]
[Date "2022.08.09"]
[WhiteClock "0:00:07"]
[BlackClock "0:00:18"]

1. Nf3 {[%clk 0:03:00]}  d5 {[%clk 0:02:59]} 2. g3 {[%clk 0:02:59]}  Nd7 {[%clk 0:02:58]} 3. d4 {[%clk 0:02:55]}  Nb6 {[%clk 0:02:57]} 4. Bg2 {[%clk 0:02:55]}  Bf5 {[%clk 0:02:56]} 5. O-O {[%clk 0:02:55]}  e6 {[%clk 0:02:56]} 6. Nc3 {[%clk 0:02:55]}  Nf6 {[%clk 0:02:50]} 7. a4 {[%clk 0:02:55]}  a5 {[%clk 0:02:50]} 8. Ne5 {[%clk 0:02:50]}  Be7 {[%clk 0:02:43]} 9. Re1 {[%clk 0:02:49]}  h6 {[%clk 0:02:40]} 10. b3 {[%clk 0:02:48]}  O-O {[%clk 0:02:39]} 11. Bb2 {[%clk 0:02:48]}  c6 {[%clk 0:02:38]} 12. f3 {[%clk 0:02:47]}  Bh7 {[%clk 0:02:31]} 13. e4 {[%clk 0:02:45]}  Bb4 {[%clk 0:02:14]} 14. Re3 {[%clk 0:02:36]}  Re8 {[%clk 0:01:45]} 15. Na2 {[%clk 0:02:35]}  Bf8 {[%clk 0:01:37]} 16. Qd2 {[%clk 0:02:28]}  Nbd7 {[%clk 0:01:21]} 17. Nd3 {[%clk 0:02:19]}  dxe4 {[%clk 0:01:12]} 18. fxe4 {[%clk 0:02:18]}  e5 {[%clk 0:01:11]} 19. dxe5 {[%clk 0:02:03]}  Ng4 {[%clk 0:01:08]} 20. Re2 {[%clk 0:02:02]}  Ndxe5 {[%clk 0:01:00]} 21. Rae1 {[%clk 0:01:39]}  Qb6+ {[%clk 0:00:55]} 22. Kh1 {[%clk 0:01:36]}  Nxd3 {[%clk 0:00:53]} 23. cxd3 {[%clk 0:01:32]}  Qxb3 {[%clk 0:00:53]} 24. Nc1 {[%clk 0:01:07]}  Qxa4 {[%clk 0:00:52]} 25. Qf4 {[%clk 0:01:04]}  Nf6 {[%clk 0:00:39]} 26. Bxf6 {[%clk 0:01:01]}  gxf6 {[%clk 0:00:40]} 27. Rf2 {[%clk 0:00:38]}  Qb4 {[%clk 0:00:37]} 28. Ref1 {[%clk 0:00:36]}  a4 {[%clk 0:00:35]} 29. Qxf6 {[%clk 0:00:35]}  Bg6 {[%clk 0:00:35]} 30. Ne2 {[%clk 0:00:32]}  Bg7 {[%clk 0:00:34]} 31. Qh4 {[%clk 0:00:32]}  a3 {[%clk 0:00:32]} 32. Nf4 {[%clk 0:00:32]}  a2 {[%clk 0:00:32]} 33. Nxg6 {[%clk 0:00:31]}  fxg6 {[%clk 0:00:33]} 34. Qg4 {[%clk 0:00:19]}  a1=Q {[%clk 0:00:31]} 35. Qxg6 {[%clk 0:00:18]}  Qe5 {[%clk 0:00:24]} 36. Rf7 {[%clk 0:00:13]}  Rf8 {[%clk 0:00:18]} 37. Bh3 {[%clk 0:00:09]}  Rxf7 {[%clk 0:00:18]} 38. Rxf7 {[%clk 0:00:07]}  Ra1+ {[%clk 0:00:18]} 0-1


[Site "https://www.chess.com"]

[Event "Titled Tuesday Blitz August 09 Early 2022"]
[White "Ismayil, Malak"]
[Black "Sohier, Julien"]
[WhiteFideId "13412604"]
[BlackFideId "645346"]
[WhiteElo "1879"]
[BlackElo "2209"]
[Result "1-0"]
[Round "05"]
[TimeControl "180+1"]
[Date "2022.08.09"]
[WhiteClock "0:00:20"]
[BlackClock "0:00:46"]

1. e4 {[%clk 0:03:00]}  e5 {[%clk 0:02:59]} 2. Nf3 {[%clk 0:02:59]}  Nc6 {[%clk 0:02:59]} 3. Bc4 {[%clk 0:02:59]}  Bc5 {[%clk 0:03:00]} 4. O-O {[%clk 0:02:57]}  Nf6 {[%clk 0:03:00]} 5. d3 {[%clk 0:02:57]}  O-O {[%clk 0:03:00]} 6. Nc3 {[%clk 0:02:56]}  h6 {[%clk 0:02:59]} 7. h3 {[%clk 0:02:49]}  Re8 {[%clk 0:02:58]} 8. Be3 {[%clk 0:02:47]}  Bb6 {[%clk 0:02:50]} 9. Qd2 {[%clk 0:02:47]}  Nd4 {[%clk 0:02:49]} 10. Bxd4 {[%clk 0:02:44]}  Bxd4 {[%clk 0:02:47]} 11. Nxd4 {[%clk 0:02:41]}  exd4 {[%clk 0:02:48]} 12. Ne2 {[%clk 0:02:41]}  c5 {[%clk 0:02:45]} 13. Bb3 {[%clk 0:02:16]}  d5 {[%clk 0:02:44]} 14. exd5 {[%clk 0:02:15]}  Nxd5 {[%clk 0:02:44]} 15. Rae1 {[%clk 0:02:12]}  Be6 {[%clk 0:02:44]} 16. Ng3 {[%clk 0:02:04]}  Qd7 {[%clk 0:02:37]} 17. Ne4 {[%clk 0:01:59]}  b6 {[%clk 0:02:36]} 18. Qd1 {[%clk 0:01:45]}  Bf5 {[%clk 0:02:29]} 19. Ng3 {[%clk 0:01:41]}  Be6 {[%clk 0:02:26]} 20. Qf3 {[%clk 0:01:39]}  Rad8 {[%clk 0:02:25]} 21. Nh5 {[%clk 0:01:31]}  Kh7 {[%clk 0:02:10]} 22. Qg3 {[%clk 0:01:25]}  Rg8 {[%clk 0:02:07]} 23. Qf3 {[%clk 0:01:02]}  Rde8 {[%clk 0:01:58]} 24. Ng3 {[%clk 0:01:00]}  Nb4 {[%clk 0:01:56]} 25. a3 {[%clk 0:00:54]}  Bxb3 {[%clk 0:01:54]} 26. cxb3 {[%clk 0:00:54]}  Nd5 {[%clk 0:01:42]} 27. Ne4 {[%clk 0:00:44]}  f5 {[%clk 0:01:38]} 28. Nd2 {[%clk 0:00:39]}  g6 {[%clk 0:01:36]} 29. Nc4 {[%clk 0:00:39]}  Nf6 {[%clk 0:01:21]} 30. a4 {[%clk 0:00:32]}  Rxe1 {[%clk 0:01:20]} 31. Rxe1 {[%clk 0:00:31]}  Re8 {[%clk 0:01:21]} 32. Rxe8 {[%clk 0:00:31]}  Qxe8 {[%clk 0:01:22]} 33. Kf1 {[%clk 0:00:31]}  Qe6 {[%clk 0:01:19]} 34. Qb7+ {[%clk 0:00:30]}  Qd7 {[%clk 0:01:17]} 35. Qb8 {[%clk 0:00:30]}  h5 {[%clk 0:01:14]} 36. Ne5 {[%clk 0:00:29]}  Qe7 {[%clk 0:01:02]} 37. Nc6 {[%clk 0:00:23]}  Qe6 {[%clk 0:01:00]} 38. Qxa7+ {[%clk 0:00:23]}  Kh6 {[%clk 0:01:00]} 39. Qxb6 {[%clk 0:00:23]}  f4 {[%clk 0:00:56]} 40. Qxc5 {[%clk 0:00:21]}  f3 {[%clk 0:00:54]} 41. Nxd4 {[%clk 0:00:21]}  fxg2+ {[%clk 0:00:50]} 42. Kxg2 {[%clk 0:00:22]}  Qe1 {[%clk 0:00:50]} 43. Nf3 {[%clk 0:00:21]}  Qc1 {[%clk 0:00:46]} 44. Qxc1+ {[%clk 0:00:20]} 1-0


[Site "https://www.chess.com"]

[Event "Titled Tuesday Blitz August 09 Early 2022"]
[White "Jain, Naveen"]
[Black "Atakhan, Abtin"]
[WhiteFideId "5003970"]
[BlackFideId "22502203"]
[WhiteElo "2036"]
[BlackElo "2087"]
[Result "0-1"]
[Round "05"]
[TimeControl "180+1"]
[Date "2022.08.09"]
[WhiteClock "0:00:02"]
[BlackClock "0:00:46"]

1. c4 {[%clk 0:03:00]}  e5 {[%clk 0:02:30]} 2. g3 {[%clk 0:02:59]}  c6 {[%clk 0:02:24]} 3. Bg2 {[%clk 0:02:58]}  d5 {[%clk 0:02:24]} 4. cxd5 {[%clk 0:02:59]}  cxd5 {[%clk 0:02:24]} 5. d4 {[%clk 0:03:00]}  e4 {[%clk 0:02:24]} 6. Nc3 {[%clk 0:03:00]}  Bb4 {[%clk 0:02:25]} 7. f3 {[%clk 0:02:57]}  f5 {[%clk 0:02:22]} 8. Nh3 {[%clk 0:02:54]}  Nf6 {[%clk 0:02:15]} 9. Bg5 {[%clk 0:02:53]}  O-O {[%clk 0:02:13]} 10. O-O {[%clk 0:02:52]}  Bxc3 {[%clk 0:02:11]} 11. bxc3 {[%clk 0:02:51]}  Nbd7 {[%clk 0:02:09]} 12. Nf4 {[%clk 0:02:49]}  Qa5 {[%clk 0:01:56]} 13. Qb3 {[%clk 0:02:44]}  h6 {[%clk 0:01:56]} 14. Bxf6 {[%clk 0:02:36]}  Nxf6 {[%clk 0:01:57]} 15. fxe4 {[%clk 0:02:36]}  fxe4 {[%clk 0:01:56]} 16. Ng6 {[%clk 0:02:13]}  Re8 {[%clk 0:01:50]} 17. Ne5 {[%clk 0:02:10]}  Kh7 {[%clk 0:01:22]} 18. Rf4 {[%clk 0:01:58]}  Qb6 {[%clk 0:01:22]} 19. Qc2 {[%clk 0:01:47]}  a6 {[%clk 0:01:07]} 20. Raf1 {[%clk 0:01:38]}  Rxe5 {[%clk 0:01:06]} 21. e3 {[%clk 0:00:21]}  Re7 {[%clk 0:01:00]} 22. h3 {[%clk 0:00:21]}  Bd7 {[%clk 0:00:59]} 23. g4 {[%clk 0:00:21]}  Bb5 {[%clk 0:00:56]} 24. R1f2 {[%clk 0:00:21]}  Bd3 {[%clk 0:00:57]} 25. Qd2 {[%clk 0:00:20]}  Rf8 {[%clk 0:00:54]} 26. Kh2 {[%clk 0:00:20]}  Ree8 {[%clk 0:00:52]} 27. Kg3 {[%clk 0:00:20]}  Qc7 {[%clk 0:00:50]} 28. h4 {[%clk 0:00:13]}  g5 {[%clk 0:00:49]} 29. hxg5 {[%clk 0:00:12]}  hxg5 {[%clk 0:00:50]} 30. Qe1 {[%clk 0:00:12]}  Kg7 {[%clk 0:00:48]} 31. Qh1 {[%clk 0:00:11]}  Rh8 {[%clk 0:00:48]} 32. Qg1 {[%clk 0:00:10]}  Rh4 {[%clk 0:00:47]} 33. Qc1 {[%clk 0:00:05]}  Reh8 {[%clk 0:00:47]} 34. Bf3 {[%clk 0:00:02]}  exf3 {[%clk 0:00:46]} 0-1


[Site "https://www.chess.com"]

[Event "Titled Tuesday Blitz August 09 Early 2022"]
[White "Khabinets, Ivan"]
[Black "Gheorghiu, Calin"]
[WhiteFideId "14115980"]
[BlackFideId "1200305"]
[WhiteElo "2114"]
[BlackElo "2168"]
[Result "1-0"]
[Round "05"]
[TimeControl "180+1"]
[Date "2022.08.09"]
[WhiteClock "0:00:48"]
[BlackClock "0:00:03"]

1. e4 {[%clk 0:02:46]}  c5 {[%clk 0:02:59]} 2. Nf3 {[%clk 0:02:44]}  d6 {[%clk 0:02:59]} 3. Bb5+ {[%clk 0:02:45]}  Nd7 {[%clk 0:02:57]} 4. a4 {[%clk 0:02:43]}  a6 {[%clk 0:02:36]} 5. Be2 {[%clk 0:02:43]}  b6 {[%clk 0:02:37]} 6. Nc3 {[%clk 0:02:42]}  Bb7 {[%clk 0:02:37]} 7. d4 {[%clk 0:02:43]}  cxd4 {[%clk 0:02:37]} 8. Qxd4 {[%clk 0:02:43]}  Ngf6 {[%clk 0:02:32]} 9. O-O {[%clk 0:02:43]}  e6 {[%clk 0:02:24]} 10. Rd1 {[%clk 0:02:43]}  Be7 {[%clk 0:02:24]} 11. e5 {[%clk 0:02:43]}  dxe5 {[%clk 0:01:33]} 12. Nxe5 {[%clk 0:02:42]}  Nxe5 {[%clk 0:01:33]} 13. Qxe5 {[%clk 0:02:43]}  Qb8 {[%clk 0:01:32]} 14. Bf4 {[%clk 0:02:38]}  Qxe5 {[%clk 0:01:29]} 15. Bxe5 {[%clk 0:02:38]}  Nd7 {[%clk 0:01:22]} 16. Bf4 {[%clk 0:02:25]}  Bf6 {[%clk 0:01:22]} 17. Ra3 {[%clk 0:02:21]}  Rc8 {[%clk 0:01:15]} 18. Be3 {[%clk 0:02:15]}  Nc5 {[%clk 0:00:31]} 19. f3 {[%clk 0:02:00]}  Ke7 {[%clk 0:00:22]} 20. b4 {[%clk 0:01:46]}  Nd7 {[%clk 0:00:22]} 21. Ne4 {[%clk 0:01:46]}  Rxc2 {[%clk 0:00:17]} 22. Bd3 {[%clk 0:01:47]}  Rb2 {[%clk 0:00:14]} 23. b5 {[%clk 0:01:44]}  a5 {[%clk 0:00:13]} 24. Nd6 {[%clk 0:01:24]}  Bd5 {[%clk 0:00:10]} 25. Nc4 {[%clk 0:01:23]}  Rb4 {[%clk 0:00:06]} 26. Nxb6 {[%clk 0:01:21]}  Nxb6 {[%clk 0:00:06]} 27. Bxb6 {[%clk 0:01:21]}  Bb2 {[%clk 0:00:07]} 28. Bc5+ {[%clk 0:01:20]}  Kd7 {[%clk 0:00:04]} 29. Bxb4 {[%clk 0:01:05]}  axb4 {[%clk 0:00:04]} 30. Raa1 {[%clk 0:01:06]}  Bxa1 {[%clk 0:00:02]} 31. Rxa1 {[%clk 0:01:06]}  Ra8 {[%clk 0:00:02]} 32. a5 {[%clk 0:01:06]}  b3 {[%clk 0:00:02]} 33. a6 {[%clk 0:01:00]}  Kc7 {[%clk 0:00:02]} 34. Kf2 {[%clk 0:00:57]}  Kb6 {[%clk 0:00:02]} 35. Ke3 {[%clk 0:00:58]}  Rc8 {[%clk 0:00:01]} 36. Kd4 {[%clk 0:00:58]}  Rd8 {[%clk 0:00:02]} 37. Kc3 {[%clk 0:00:57]}  Rc8+ {[%clk 0:00:02]} 38. Kb2 {[%clk 0:00:57]}  Rc5 {[%clk 0:00:02]} 39. Rc1 {[%clk 0:00:57]}  Rxc1 {[%clk 0:00:02]} 40. Kxc1 {[%clk 0:00:58]}  e5 {[%clk 0:00:01]} 41. Bxh7 {[%clk 0:00:51]}  g6 {[%clk 0:00:02]} 42. Kb2 {[%clk 0:00:51]}  f5 {[%clk 0:00:02]} 43. Bxg6 {[%clk 0:00:51]}  e4 {[%clk 0:00:02]} 44. Bxf5 {[%clk 0:00:50]}  e3 {[%clk 0:00:02]} 45. Bd3 {[%clk 0:00:51]}  Ba8 {[%clk 0:00:01]} 46. h4 {[%clk 0:00:51]}  Kc5 {[%clk 0:00:02]} 47. Be2 {[%clk 0:00:49]}  Bd5 {[%clk 0:00:02]} 48. h5 {[%clk 0:00:49]}  Bc4 {[%clk 0:00:02]} 49. a7 {[%clk 0:00:47]}  Bd5 {[%clk 0:00:02]} 50. h6 {[%clk 0:00:47]}  Kb6 {[%clk 0:00:03]} 51. h7 {[%clk 0:00:48]} 1-0


[Site "https://www.chess.com"]

[Event "Titled Tuesday Blitz August 09 Early 2022"]
[White "Khripachenko, Alexander"]
[Black "Daeschler, Florian"]
[WhiteFideId "54184975"]
[BlackFideId "20678193"]
[WhiteElo "2233"]
[BlackElo "2187"]
[Result "1-0"]
[Round "05"]
[TimeControl "180+1"]
[Date "2022.08.09"]
[WhiteClock "0:01:25"]
[BlackClock "0:00:02"]

1. e4 {[%clk 0:03:00]}  c5 {[%clk 0:02:59]} 2. Nf3 {[%clk 0:03:00]}  d6 {[%clk 0:02:59]} 3. d4 {[%clk 0:03:01]}  cxd4 {[%clk 0:03:00]} 4. Qxd4 {[%clk 0:03:00]}  a6 {[%clk 0:02:59]} 5. h3 {[%clk 0:03:01]}  Nc6 {[%clk 0:02:59]} 6. Qe3 {[%clk 0:03:01]}  g6 {[%clk 0:02:56]} 7. Be2 {[%clk 0:03:01]}  Bh6 {[%clk 0:02:54]} 8. Qc3 {[%clk 0:03:01]}  e5 {[%clk 0:02:44]} 9. Bxh6 {[%clk 0:02:59]}  Nxh6 {[%clk 0:02:45]} 10. Qd2 {[%clk 0:02:59]}  Ng8 {[%clk 0:02:41]} 11. Nc3 {[%clk 0:02:58]}  Nf6 {[%clk 0:02:41]} 12. O-O-O {[%clk 0:02:58]}  O-O {[%clk 0:02:36]} 13. Qxd6 {[%clk 0:02:57]}  Be6 {[%clk 0:02:34]} 14. Qxd8 {[%clk 0:02:56]}  Raxd8 {[%clk 0:02:35]} 15. Rxd8 {[%clk 0:02:56]}  Rxd8 {[%clk 0:02:35]} 16. Rd1 {[%clk 0:02:57]}  Rc8 {[%clk 0:02:35]} 17. Ng5 {[%clk 0:02:55]}  Nd4 {[%clk 0:02:26]} 18. Nxe6 {[%clk 0:02:53]}  fxe6 {[%clk 0:02:22]} 19. Bd3 {[%clk 0:02:53]}  Nh5 {[%clk 0:02:15]} 20. Ne2 {[%clk 0:02:51]}  Nf4 {[%clk 0:02:09]} 21. Nxd4 {[%clk 0:02:48]}  exd4 {[%clk 0:02:08]} 22. Bf1 {[%clk 0:02:48]}  e5 {[%clk 0:02:07]} 23. g3 {[%clk 0:02:48]}  Ne6 {[%clk 0:02:06]} 24. b3 {[%clk 0:02:45]}  Kg7 {[%clk 0:02:01]} 25. Bc4 {[%clk 0:02:45]}  Ng5 {[%clk 0:02:00]} 26. Re1 {[%clk 0:02:44]}  b5 {[%clk 0:01:56]} 27. Bd5 {[%clk 0:02:43]}  d3 {[%clk 0:01:46]} 28. c4 {[%clk 0:02:41]}  bxc4 {[%clk 0:01:39]} 29. Bxc4 {[%clk 0:02:42]}  Rd8 {[%clk 0:01:29]} 30. Kd1 {[%clk 0:02:36]}  a5 {[%clk 0:01:25]} 31. h4 {[%clk 0:02:35]}  Nf3 {[%clk 0:01:21]} 32. Re3 {[%clk 0:02:33]}  Nd4 {[%clk 0:01:19]} 33. Rxd3 {[%clk 0:02:34]}  Kf6 {[%clk 0:01:08]} 34. f4 {[%clk 0:02:33]}  Ra8 {[%clk 0:01:08]} 35. Kd2 {[%clk 0:02:33]}  a4 {[%clk 0:01:07]} 36. b4 {[%clk 0:02:33]}  Rc8 {[%clk 0:01:02]} 37. Bd5 {[%clk 0:02:25]}  Rc2+ {[%clk 0:01:01]} 38. Kd1 {[%clk 0:02:21]}  Rb2 {[%clk 0:00:55]} 39. a3 {[%clk 0:02:18]}  h6 {[%clk 0:00:45]} 40. Rc3 {[%clk 0:02:14]}  g5 {[%clk 0:00:37]} 41. fxg5+ {[%clk 0:02:13]}  hxg5 {[%clk 0:00:38]} 42. Bc6 {[%clk 0:01:57]}  Rb1+ {[%clk 0:00:34]} 43. Kd2 {[%clk 0:01:53]}  Rb2+ {[%clk 0:00:33]} 44. Kd3 {[%clk 0:01:51]}  Rb3 {[%clk 0:00:21]} 45. hxg5+ {[%clk 0:01:49]}  Kxg5 {[%clk 0:00:19]} 46. Bxa4 {[%clk 0:01:43]}  Rb2 {[%clk 0:00:19]} 47. Bd1 {[%clk 0:01:39]}  Rb1 {[%clk 0:00:17]} 48. Bc2 {[%clk 0:01:36]}  Rc1 {[%clk 0:00:15]} 49. Rc5 {[%clk 0:01:34]}  Kg4 {[%clk 0:00:12]} 50. a4 {[%clk 0:01:31]}  Kxg3 {[%clk 0:00:11]} 51. a5 {[%clk 0:01:32]}  Kf2 {[%clk 0:00:11]} 52. a6 {[%clk 0:01:27]}  Ne2 {[%clk 0:00:08]} 53. a7 {[%clk 0:01:25]}  Nf4+ {[%clk 0:00:08]} 54. Kc3 {[%clk 0:01:25]}  Ne2+ {[%clk 0:00:02]} 55. Kb2 {[%clk 0:01:25]} 1-0


[Site "https://www.chess.com"]

[Event "Titled Tuesday Blitz August 09 Early 2022"]
[White "Kostina, Nadezhda"]
[Black "Ljukin, Sergei"]
[WhiteFideId "4195876"]
[BlackFideId "14102200"]
[WhiteElo "1980"]
[BlackElo "2312"]
[Result "1-0"]
[Round "05"]
[TimeControl "180+1"]
[Date "2022.08.09"]
[WhiteClock "0:00:18"]
[BlackClock "0:00:01"]

1. e4 {[%clk 0:03:00]}  e6 {[%clk 0:02:58]} 2. d4 {[%clk 0:03:00]}  d5 {[%clk 0:02:57]} 3. Nc3 {[%clk 0:02:59]}  Bb4 {[%clk 0:02:55]} 4. e5 {[%clk 0:02:59]}  Ne7 {[%clk 0:02:51]} 5. Qg4 {[%clk 0:02:57]}  c5 {[%clk 0:02:51]} 6. a3 {[%clk 0:02:56]}  Bxc3+ {[%clk 0:02:50]} 7. bxc3 {[%clk 0:02:56]}  Qc7 {[%clk 0:02:50]} 8. Bd3 {[%clk 0:02:54]}  Qa5 {[%clk 0:02:46]} 9. Ne2 {[%clk 0:02:50]}  c4 {[%clk 0:02:44]} 10. Qxg7 {[%clk 0:02:36]}  Rg8 {[%clk 0:02:43]} 11. Qxh7 {[%clk 0:02:37]}  cxd3 {[%clk 0:02:43]} 12. cxd3 {[%clk 0:02:37]}  Nbc6 {[%clk 0:02:40]} 13. O-O {[%clk 0:02:35]}  Bd7 {[%clk 0:02:40]} 14. Rb1 {[%clk 0:02:26]}  O-O-O {[%clk 0:02:38]} 15. Qxf7 {[%clk 0:02:25]}  Qa4 {[%clk 0:02:18]} 16. h4 {[%clk 0:02:09]}  Rdf8 {[%clk 0:02:16]} 17. Qh7 {[%clk 0:01:49]}  Rh8 {[%clk 0:02:12]} 18. Qg7 {[%clk 0:01:49]}  Qc2 {[%clk 0:01:59]} 19. Rb2 {[%clk 0:01:29]}  Qxd3 {[%clk 0:01:54]} 20. Bg5 {[%clk 0:01:29]}  Nf5 {[%clk 0:01:35]} 21. Qg6 {[%clk 0:01:28]}  Rfg8 {[%clk 0:01:21]} 22. Qf6 {[%clk 0:01:21]}  Rf8 {[%clk 0:01:10]} 23. Qg6 {[%clk 0:01:20]}  b6 {[%clk 0:00:46]} 24. Nf4 {[%clk 0:01:16]}  Qe4 {[%clk 0:00:36]} 25. Nxe6 {[%clk 0:01:14]}  Rfg8 {[%clk 0:00:30]} 26. Qf7 {[%clk 0:01:09]}  Nxh4 {[%clk 0:00:21]} 27. f3 {[%clk 0:01:08]}  Qg6 {[%clk 0:00:21]} 28. Qxg6 {[%clk 0:01:00]}  Nxg6 {[%clk 0:00:19]} 29. Nf4 {[%clk 0:00:56]}  Nxf4 {[%clk 0:00:16]} 30. Bxf4 {[%clk 0:00:56]}  Na5 {[%clk 0:00:15]} 31. g4 {[%clk 0:00:51]}  Nc4 {[%clk 0:00:14]} 32. Ra2 {[%clk 0:00:46]}  Be6 {[%clk 0:00:12]} 33. Kg2 {[%clk 0:00:41]}  Rf8 {[%clk 0:00:09]} 34. Kg3 {[%clk 0:00:42]}  Rf7 {[%clk 0:00:07]} 35. Bc1 {[%clk 0:00:39]}  Rg8 {[%clk 0:00:07]} 36. Rh2 {[%clk 0:00:38]}  Bxg4 {[%clk 0:00:04]} 37. Kf2 {[%clk 0:00:19]}  Rxf3+ {[%clk 0:00:02]} 38. Ke1 {[%clk 0:00:19]}  Rgf8 {[%clk 0:00:01]} 39. Rxf3 {[%clk 0:00:19]}  Rxf3 {[%clk 0:00:01]} 40. Rg2 {[%clk 0:00:18]} 1-0


[Site "https://www.chess.com"]

[Event "Titled Tuesday Blitz August 09 Early 2022"]
[White "Lebedev, Artem S."]
[Black "Martinez, Shawn"]
[WhiteFideId "34272747"]
[BlackFideId "2039770"]
[WhiteElo "1699"]
[BlackElo "2174"]
[Result "0-1"]
[Round "05"]
[TimeControl "180+1"]
[Date "2022.08.09"]
[WhiteClock "0:00:02"]
[BlackClock "0:00:19"]

1. e4 {[%clk 0:03:00]}  c5 {[%clk 0:02:52]} 2. Nf3 {[%clk 0:02:59]}  e6 {[%clk 0:02:53]} 3. d4 {[%clk 0:02:58]}  cxd4 {[%clk 0:02:53]} 4. Nxd4 {[%clk 0:02:58]}  a6 {[%clk 0:02:54]} 5. Nc3 {[%clk 0:02:54]}  Bb4 {[%clk 0:02:53]} 6. Bd3 {[%clk 0:02:46]}  d6 {[%clk 0:02:50]} 7. O-O {[%clk 0:02:44]}  Nf6 {[%clk 0:02:49]} 8. Bg5 {[%clk 0:02:30]}  Bxc3 {[%clk 0:02:45]} 9. bxc3 {[%clk 0:02:30]}  e5 {[%clk 0:02:45]} 10. Ne2 {[%clk 0:02:25]}  h6 {[%clk 0:02:44]} 11. Bh4 {[%clk 0:02:15]}  g5 {[%clk 0:02:43]} 12. Bg3 {[%clk 0:02:15]}  O-O {[%clk 0:02:42]} 13. h4 {[%clk 0:02:13]}  Nh5 {[%clk 0:02:32]} 14. c4 {[%clk 0:02:07]}  Nd7 {[%clk 0:02:21]} 15. Nc3 {[%clk 0:02:06]}  Nf4 {[%clk 0:01:54]} 16. hxg5 {[%clk 0:01:48]}  Qxg5 {[%clk 0:01:25]} 17. Nd5 {[%clk 0:01:10]}  Nc5 {[%clk 0:01:11]} 18. Bxf4 {[%clk 0:00:36]}  exf4 {[%clk 0:01:07]} 19. Qf3 {[%clk 0:00:35]}  Ne6 {[%clk 0:01:02]} 20. g3 {[%clk 0:00:18]}  Kh8 {[%clk 0:01:00]} 21. Kg2 {[%clk 0:00:18]}  Rg8 {[%clk 0:00:59]} 22. Rh1 {[%clk 0:00:19]}  Bd7 {[%clk 0:00:51]} 23. Nxf4 {[%clk 0:00:18]}  Nxf4+ {[%clk 0:00:50]} 24. Kf1 {[%clk 0:00:16]}  Nxd3 {[%clk 0:00:47]} 25. cxd3 {[%clk 0:00:15]}  f5 {[%clk 0:00:42]} 26. Rh5 {[%clk 0:00:13]}  Qg7 {[%clk 0:00:36]} 27. Qf4 {[%clk 0:00:12]}  Qxa1+ {[%clk 0:00:33]} 28. Kg2 {[%clk 0:00:11]}  Rg6 {[%clk 0:00:30]} 29. Rxh6+ {[%clk 0:00:11]}  Rxh6 {[%clk 0:00:29]} 30. Qxh6+ {[%clk 0:00:11]}  Kg8 {[%clk 0:00:29]} 31. Qxd6 {[%clk 0:00:09]}  Qg7 {[%clk 0:00:29]} 32. e5 {[%clk 0:00:08]}  Bc6+ {[%clk 0:00:28]} 33. Kg1 {[%clk 0:00:06]}  Re8 {[%clk 0:00:26]} 34. d4 {[%clk 0:00:05]}  Bf3 {[%clk 0:00:24]} 35. Kf1 {[%clk 0:00:02]}  f4 {[%clk 0:00:19]} 0-1


[Site "https://www.chess.com"]

[Event "Titled Tuesday Blitz August 09 Early 2022"]
[White "Lehtosaari, Mauri"]
[Black "Petrova, Irina"]
[WhiteFideId "501999"]
[BlackFideId "14124122"]
[WhiteElo "2496"]
[BlackElo "2021"]
[Result "1/2-1/2"]
[Round "05"]
[TimeControl "180+1"]
[Date "2022.08.09"]
[WhiteClock "0:00:07"]
[BlackClock "0:00:15"]

1. d4 {[%clk 0:03:00]}  d6 {[%clk 0:03:00]} 2. Nf3 {[%clk 0:03:00]}  g6 {[%clk 0:03:00]} 3. Bg5 {[%clk 0:03:00]}  Bg7 {[%clk 0:02:58]} 4. c3 {[%clk 0:03:00]}  Nd7 {[%clk 0:02:58]} 5. Nbd2 {[%clk 0:02:59]}  h6 {[%clk 0:02:58]} 6. Bh4 {[%clk 0:02:58]}  f5 {[%clk 0:02:58]} 7. e3 {[%clk 0:02:58]}  Ngf6 {[%clk 0:02:58]} 8. Bc4 {[%clk 0:02:56]}  e5 {[%clk 0:02:53]} 9. Qb3 {[%clk 0:02:51]}  Qe7 {[%clk 0:02:47]} 10. O-O-O {[%clk 0:02:39]}  Nb6 {[%clk 0:02:42]} 11. dxe5 {[%clk 0:02:29]}  dxe5 {[%clk 0:02:41]} 12. Bg3 {[%clk 0:02:27]}  Ne4 {[%clk 0:02:19]} 13. Nxe4 {[%clk 0:02:17]}  fxe4 {[%clk 0:02:20]} 14. Nh4 {[%clk 0:01:55]}  Bf5 {[%clk 0:02:13]} 15. Nxf5 {[%clk 0:01:44]}  gxf5 {[%clk 0:02:14]} 16. Be2 {[%clk 0:01:43]}  h5 {[%clk 0:01:41]} 17. h4 {[%clk 0:01:21]}  Qf7 {[%clk 0:01:41]} 18. Qxf7+ {[%clk 0:00:58]}  Kxf7 {[%clk 0:01:42]} 19. b3 {[%clk 0:00:53]}  Kg6 {[%clk 0:01:39]} 20. a4 {[%clk 0:00:51]}  a5 {[%clk 0:01:37]} 21. Kc2 {[%clk 0:00:49]}  Rhd8 {[%clk 0:01:35]} 22. f3 {[%clk 0:00:32]}  Nd7 {[%clk 0:01:13]} 23. fxe4 {[%clk 0:00:31]}  fxe4 {[%clk 0:01:14]} 24. Rhf1 {[%clk 0:00:22]}  Nc5 {[%clk 0:01:13]} 25. Bc4 {[%clk 0:00:22]}  Bf6 {[%clk 0:01:06]} 26. Rde1 {[%clk 0:00:19]}  Nd3 {[%clk 0:01:02]} 27. Re2 {[%clk 0:00:19]}  Rd6 {[%clk 0:00:55]} 28. Rd2 {[%clk 0:00:15]}  Rad8 {[%clk 0:00:54]} 29. Rfd1 {[%clk 0:00:15]}  Nc5 {[%clk 0:00:43]} 30. Rxd6 {[%clk 0:00:14]}  Rxd6 {[%clk 0:00:43]} 31. Rxd6 {[%clk 0:00:15]}  cxd6 {[%clk 0:00:44]} 32. Bd5 {[%clk 0:00:15]}  b6 {[%clk 0:00:42]} 33. Bf2 {[%clk 0:00:14]}  Bd8 {[%clk 0:00:37]} 34. Bc6 {[%clk 0:00:15]}  Kf5 {[%clk 0:00:34]} 35. Be8 {[%clk 0:00:14]}  Kg4 {[%clk 0:00:30]} 36. b4 {[%clk 0:00:14]}  Bxh4 {[%clk 0:00:24]} 37. Bxh4 {[%clk 0:00:13]}  Kxh4 {[%clk 0:00:25]} 38. bxc5 {[%clk 0:00:13]}  dxc5 {[%clk 0:00:18]} 39. Kb3 {[%clk 0:00:13]}  Kg3 {[%clk 0:00:18]} 40. Bxh5 {[%clk 0:00:13]}  Kxg2 {[%clk 0:00:18]} 41. Kc4 {[%clk 0:00:12]}  Kf2 {[%clk 0:00:18]} 42. Kb5 {[%clk 0:00:11]}  Kxe3 {[%clk 0:00:19]} 43. Kxb6 {[%clk 0:00:11]}  Kd2 {[%clk 0:00:18]} 44. Kxa5 {[%clk 0:00:11]}  Kxc3 {[%clk 0:00:18]} 45. Kb5 {[%clk 0:00:10]}  e3 {[%clk 0:00:18]} 46. a5 {[%clk 0:00:10]}  Kd2 {[%clk 0:00:18]} 47. a6 {[%clk 0:00:10]}  e2 {[%clk 0:00:17]} 48. Bxe2 {[%clk 0:00:10]}  Kxe2 {[%clk 0:00:18]} 49. a7 {[%clk 0:00:10]}  c4 {[%clk 0:00:18]} 50. a8=Q {[%clk 0:00:10]}  c3 {[%clk 0:00:19]} 51. Qe4+ {[%clk 0:00:10]}  Kd2 {[%clk 0:00:18]} 52. Qg2+ {[%clk 0:00:09]}  Kc1 {[%clk 0:00:18]} 53. Qf1+ {[%clk 0:00:08]}  Kb2 {[%clk 0:00:18]} 54. Qe2+ {[%clk 0:00:06]}  c2 {[%clk 0:00:18]} 55. Qxe5+ {[%clk 0:00:07]}  Kb1 {[%clk 0:00:18]} 56. Qe4 {[%clk 0:00:07]}  Kb2 {[%clk 0:00:17]} 57. Qe2 {[%clk 0:00:06]}  Ka1 {[%clk 0:00:17]} 58. Kb4 {[%clk 0:00:05]}  c1=Q {[%clk 0:00:15]} 59. Kb3 {[%clk 0:00:05]}  Qb1+ {[%clk 0:00:15]} 60. Ka3 {[%clk 0:00:06]}  Qc1+ {[%clk 0:00:15]} 61. Kb3 {[%clk 0:00:06]}  Qb1+ {[%clk 0:00:15]} 62. Ka3 {[%clk 0:00:07]}  Qc1+ {[%clk 0:00:15]} 63. Kb3 {[%clk 0:00:07]} 1/2-1/2


[Site "https://www.chess.com"]